lending/lending_fUSD_20260102
["ID","MTS","AMOUNT","RATE_DAILY","PERIOD"]
[400331175,1767381039970,-500.0,0.00024879,2]
[400331176,1767381039979,-500.0,0.00024879,2]
[400331177,1767381039989,-500.0,0.00024879,2]
[400331178,1767381039998,-500.0,0.00024879,2]
[400331179,1767381040010,-500.0,0.00024879,2]
[400331180,1767381040019,-500.0,0.00024879,2]
[400331181,1767381040028,-500.0,0.00024879,2]
[400331182,1767381040037,-500.0,0.00024879,2]
[400331183,1767381040046,-500.0,0.00024879,2]
[400331184,1767381040055,-500.0,0.00024879,2]
[400331185,1767381040064,-500.0,0.00024879,2]
[400331186,1767381040074,-500.0,0.00024879,2]
[400331187,1767381040083,-500.0,0.00024879,2]
[400331188,1767381040092,-270.87512442,0.00024879,2]
[400331189,1767381040102,-500.0,0.00024879,2]
[400331190,1767381040111,-500.0,0.00024879,2]
[400331191,1767381040121,-500.0,0.00024879,2]
[400331193,1767381040131,-500.0,0.00024879,2]
[400331196,1767381040139,-500.0,0.00024879,2]
[400331198,1767381040152,-500.0,0.00024879,2]
[400331199,1767381040165,-500.0,0.00024879,2]
[400331200,1767381040174,-500.0,0.00024879,2]
[400331201,1767381040183,-500.0,0.00024879,2]
[400331202,1767381040192,-500.0,0.00024879,2]
[400331203,1767381040203,-500.0,0.00024879,2]
[400331204,1767381040212,-500.0,0.00024879,2]
[400331205,1767381040221,-500.0,0.00024879,2]
[400331206,1767381040231,-500.0,0.00024879,2]
[400331207,1767381040240,-500.0,0.00024879,2]
[400331208,1767381040250,-500.0,0.00024879,2]
[400331209,1767381040259,-500.0,0.00024879,2]
[400331210,1767381040268,-500.0,0.00024879,2]
[400331211,1767381040278,-500.0,0.00024879,2]
[400331212,1767381040287,-500.0,0.00024879,2]
[400331213,1767381040296,-550.0,0.00024879,2]
[400331214,1767381040306,-500.0,0.00024879,2]
[400331215,1767381040316,-500.0,0.00024879,2]
[400331216,1767381040325,-500.0,0.00024879,2]
[400331217,1767381040334,-500.0,0.00024879,2]
[400331218,1767381040343,-500.0,0.00024879,2]
[400331219,1767381040359,-500.0,0.00024879,2]
[400331220,1767381040368,-500.0,0.00024879,2]
[400331221,1767381040378,-500.0,0.00024879,2]
[400331222,1767381040387,-500.0,0.00024879,2]
[400331223,1767381040398,-500.0,0.00024879,2]
[400331224,1767381040408,-500.0,0.00024879,2]
[400331225,1767381040418,-500.0,0.00024879,2]
[400331226,1767381040428,-500.0,0.00024879,2]
[400331227,1767381040438,-500.0,0.00024879,2]
[400331228,1767381040447,-500.0,0.00024879,2]
[400331229,1767381040456,-500.0,0.00024879,2]
[400331230,1767381040465,-500.0,0.00024879,2]
[400331231,1767381040474,-500.0,0.00024879,2]
[400331232,1767381040483,-500.0,0.00024879,2]
[400331233,1767381040492,-500.0,0.00024879,2]
[400331234,1767381040502,-500.0,0.00024879,2]
[400331235,1767381040511,-500.0,0.00024879,2]
[400331236,1767381040520,-500.0,0.00024879,2]
[400331237,1767381040529,-500.0,0.00024879,2]
[400331238,1767381040539,-500.0,0.00024879,2]
[400331239,1767381040548,-500.0,0.00024879,2]
[400331240,1767381040558,-500.0,0.00024879,2]
[400331241,1767381040567,-500.0,0.00024879,2]
[400331242,1767381040576,-500.0,0.00024879,2]
[400331243,1767381040586,-500.0,0.00024879,2]
[400331244,1767381040595,-500.0,0.00024879,2]
[400331245,1767381040607,-500.0,0.00024879,2]
[400331246,1767381040617,-9999.99,0.00024879,2]
[400331247,1767381040627,-7513.39,0.00024879,2]
[400331248,1767381040637,-414.08933578,0.00024879,2]
[400331249,1767381040646,-1531.74,0.00024879,2]
[400331250,1767381040655,-500.0,0.00024879,2]
[400331251,1767381040665,-500.0,0.00024879,2]
[400331252,1767381040674,-500.0,0.00024879,2]
[400331253,1767381040683,-500.0,0.00024879,2]
[400331254,1767381040692,-259.90772493,0.00024879,2]
[400331255,1767381040701,-500.0,0.00024879,2]
[400331256,1767381040710,-500.0,0.00024879,2]
[400331257,1767381040719,-577.12520897,0.00024879,2]
[400331258,1767381040729,-500.37214344,0.00024879,2]
[400331259,1767381040737,-500.0,0.00024879,2]
[400331260,1767381040747,-934.61538462,0.00024879,2]
[400331261,1767381040756,-421.25568592,0.00024879,2]
[400331262,1767381040764,-269.49553702,0.00024879,2]
[400331263,1767381040773,-934.61538462,0.00024879,2]
[400331264,1767381040783,-500.0,0.00024879,2]
[400331265,1767381040792,-500.0,0.00024879,2]
[400331266,1767381040801,-500.0,0.00024879,2]
[400331267,1767381040810,-934.61538462,0.00024879,2]
[400331268,1767381040819,-473.26906906,0.00024879,2]
[400331269,1767381040829,-500.0,0.00024879,2]
[400331270,1767381040838,-934.61538462,0.00024879,2]
[400331271,1767381040848,-934.61538462,0.00024879,2]
[400331272,1767381040860,-934.61538462,0.00024879,2]
[400331273,1767381040870,-934.61538462,0.00024879,2]
[400331274,1767381040880,-934.61538462,0.00024879,2]
[400331275,1767381040889,-934.61538462,0.00024879,2]
[400331276,1767381040899,-934.61538462,0.00024879,2]
[400331277,1767381040908,-934.61538462,0.00024879,2]
[400331278,1767381040917,-934.61538462,0.00024879,2]
[400331279,1767381040927,-934.61538462,0.00024879,2]
[400331280,1767381040935,-2125.0564036,0.0002488,2]
[400331281,1767381040945,-660.5639634,0.0002488,2]
[400331282,1767381040954,-205.52676067,0.00025,2]
[400331283,1767381040963,-299.99,0.00025007,7]
[400331284,1767381040972,-9999.99,0.00025017,2]
[400331285,1767381040982,-6280.55,0.00025017,2]
[400331286,1767381040991,-304.3,0.00025017,2]
[400331287,1767381041001,-150.99,0.00025017,2]
[400331288,1767381041010,-1531.74,0.00025153,2]
[400331289,1767381041020,-1000.0,0.00025211,2]
[400331290,1767381041029,-1000.0,0.00025211,2]
[400331291,1767381041038,-1000.0,0.00025211,2]
[400331292,1767381041047,-1000.0,0.00025211,2]
[400331293,1767381041057,-1000.0,0.00025211,2]
[400331294,1767381041067,-500.0,0.00025211,2]
[400331295,1767381041077,-500.0,0.00025254,2]
[400331296,1767381041086,-500.0,0.00025254,2]
[400331297,1767381041095,-500.0,0.00025254,2]
[400331298,1767381041103,-500.0,0.00025254,2]
[400331299,1767381041112,-500.0,0.00025254,2]
[400331300,1767381041122,-500.0,0.00025254,2]
[400331301,1767381041131,-500.0,0.00025254,2]
[400331302,1767381041139,-500.0,0.00025254,2]
[400331303,1767381041149,-500.0,0.00025254,2]
[400331304,1767381041158,-500.0,0.00025254,2]
[400331305,1767381041167,-500.0,0.00025254,2]
[400331306,1767381041346,-500.0,0.00025254,2]
[400331307,1767381041359,-500.0,0.00025254,2]
[400331308,1767381041368,-500.0,0.00025254,2]
[400331309,1767381041378,-500.0,0.00025254,2]
[400331310,1767381041388,-500.0,0.00025254,2]
[400331311,1767381041397,-500.0,0.00025254,2]
[400331312,1767381041407,-296.93519622,0.00025254,2]
[400331313,1767381041416,-500.0,0.00025254,2]
[400331314,1767381041428,-519.48987423,0.00025254,2]
[400331315,1767381041438,-500.0,0.00025254,2]
[400331316,1767381041449,-500.0,0.00025254,2]
[400331317,1767381041458,-500.0,0.00025254,2]
[400331318,1767381041468,-500.0,0.00025254,2]
[400331319,1767381041478,-500.0,0.00025254,2]
[400331320,1767381041487,-500.0,0.00025254,2]
[400331321,1767381041497,-500.0,0.00025254,2]
[400331322,1767381041506,-500.0,0.00025254,2]
[400331323,1767381041516,-500.0,0.00025254,2]
[400331324,1767381041525,-500.0,0.00025254,2]
[400331325,1767381041537,-500.0,0.00025254,2]
[400331326,1767381041554,-500.0,0.00025254,2]
[400331327,1767381041563,-500.0,0.00025254,2]
[400331328,1767381041573,-500.0,0.00025254,2]
[400331329,1767381041582,-500.0,0.00025254,2]
[400331330,1767381041591,-468.04981383,0.00025254,2]
[400331331,1767381041601,-1531.74,0.00025427,2]
[400331332,1767381041610,-5000.0,0.00025445,2]
[400331333,1767381041620,-1852.42,0.0002547,2]
[400331334,1767381041630,-150.0,0.00025525,2]
[400331335,1767381041640,-1000.0,0.00025594,2]
[400331336,1767381041649,-3240.0,0.00025613,2]
[400331337,1767381041659,-1531.74,0.00025701,2]
[400331338,1767381041668,-1531.74,0.00025975,2]
[400331339,1767381041679,-1000.0,0.00026179,2]
[400331340,1767381041689,-2189.7255222,0.0002622,2]
[400331341,1767381041790,-9845.9144778,0.0002622,2]
[400331342,1767381041800,-1531.74,0.00026249,2]
[400331343,1767381041809,-2543.69,0.00026273,2]
[400331344,1767381041819,-166.66,0.00026362,2]
[400331345,1767381041828,-1531.74,0.00026523,2]
[400331346,1767381041838,-1000.0,0.00026553,2]
[400331347,1767381041847,-500.0,0.00026572,2]
[400331348,1767381041856,-500.0,0.00026572,2]
[400331349,1767381041865,-156.11255964,0.00026572,2]
[400331350,1767381041874,-587.42809654,0.00026572,2]
[400331351,1767381041884,-500.0,0.00026572,2]
[400331352,1767381041893,-500.0,0.00026572,2]
[400331353,1767381041902,-28541.44704938,0.00026788,2]
[400331354,1767381041911,-1531.74,0.00026797,2]
[400331355,1767381041920,-500.0,0.00026804,2]
[400331356,1767381041929,-1680.0,0.0002683,2]
[400331357,1767381041938,-420.0,0.0002684,2]
[400331358,1767381041947,-1680.0,0.00026955,2]
[400331359,1767381041956,-2000.0,0.00027,2]
[400331360,1767381041966,-2432.846355,0.0002701,2]
[400331361,1767381041975,-1531.74,0.00027071,2]
[400331362,1767381041984,-3671.84,0.00027123,2]
[400331363,1767381041994,-203.93761826,0.00027172,2]
[400331364,1767381042004,-500.0,0.00027172,2]
[400331365,1767381042014,-150.0,0.00027172,2]
[400331366,1767381042023,-500.0,0.00027172,2]
[400331367,1767381042033,-500.0,0.00027172,2]
[400331368,1767381042042,-150.0,0.00027172,2]
[400331369,1767381042052,-500.0,0.00027172,2]
[400331370,1767381042062,-150.05940282,0.00027172,2]
[400331371,1767381042070,-500.0,0.00027172,2]
[400331372,1767381042079,-577.0,0.00027172,2]
[400331373,1767381042094,-150.0,0.00027172,2]
[400331374,1767381042113,-150.73404556,0.00027172,2]
[400331375,1767381042122,-150.0,0.00027172,2]
[400331376,1767381042131,-500.0,0.00027172,2]
[400331377,1767381042140,-500.0,0.00027172,2]
[400331378,1767381042150,-150.0,0.00027172,2]
[400331379,1767381042159,-500.0,0.00027172,2]
[400331380,1767381042169,-150.0,0.00027172,2]
[400331381,1767381042178,-500.0,0.00027172,2]
[400331382,1767381042187,-150.0,0.00027172,2]
[400331383,1767381042196,-150.0,0.00027172,2]
[400331384,1767381042205,-150.0,0.00027172,2]
[400331385,1767381042214,-500.0,0.00027172,2]
[400331386,1767381042224,-500.0,0.00027172,2]
[400331387,1767381042233,-150.0,0.00027172,2]
[400331388,1767381042242,-500.0,0.00027172,2]
[400331389,1767381042251,-500.0,0.00027172,2]
[400331390,1767381042261,-500.0,0.00027172,2]
[400331391,1767381042270,-150.0,0.00027172,2]
[400331392,1767381042280,-453.0,0.00027172,2]
[400331393,1767381042289,-500.0,0.00027172,2]
[400331394,1767381042298,-150.0,0.00027172,2]
[400331395,1767381042308,-166.66,0.00027232,2]
[400331396,1767381042316,-999.0,0.00027233,3]
[400331397,1767381042326,-250.0,0.00027257,2]
[400331398,1767381042335,-500.0,0.00027309,2]
[400331399,1767381042344,-150.0,0.00027309,2]
[400331400,1767381042356,-500.0,0.00027309,2]
[400331401,1767381042365,-530.13390889,0.00027309,2]
[400331402,1767381042376,-150.0,0.00027309,2]
[400331403,1767381042387,-500.0,0.00027309,2]
[400331404,1767381042396,-500.0,0.00027309,2]
[400331405,1767381042405,-577.0,0.00027309,2]
[400331406,1767381042415,-150.0,0.00027309,2]
[400331407,1767381042428,-500.0,0.00027309,2]
[400331408,1767381042437,-150.0,0.00027309,2]
[400331409,1767381042447,-500.0,0.00027309,2]
[400331410,1767381042457,-500.0,0.00027309,2]
[400331411,1767381042467,-150.0,0.00027309,2]
[400331412,1767381042476,-500.0,0.00027309,2]
[400331413,1767381042486,-150.0,0.00027309,2]
[400331414,1767381042495,-173.82331506,0.00027309,2]
[400331415,1767381042504,-150.0,0.00027309,2]
[400331416,1767381042513,-500.0,0.00027309,2]
[400331417,1767381042523,-500.0,0.00027309,2]
[400331418,1767381042532,-500.0,0.00027309,2]
[400331419,1767381042541,-500.0,0.00027309,2]
[400331420,1767381042550,-500.0,0.00027309,2]
[400331421,1767381042559,-453.0,0.00027309,2]
[400331422,1767381042569,-500.0,0.00027309,2]
[400331423,1767381042578,-33344.52049703,0.00027334,2]
[400331424,1767381042590,-3779.84969121,0.00027334,2]
[400331425,1767381042601,-2712.15784035,0.00027334,2]
[400331426,1767381042613,-1790.09687237,0.00027334,2]
[400331427,1767381042624,-4008.95509904,0.00027334,2]
[400331428,1767381042634,-1531.74,0.00027345,2]
[400331429,1767381042643,-256.26219828,0.00027397,2]
[400331430,1767381042653,-517.22,0.00027397,2]
[400331431,1767381042662,-500.0,0.00027446,2]
[400331432,1767381042671,-150.32339605,0.00027446,2]
[400331433,1767381042680,-500.0,0.00027446,2]
[400331434,1767381042689,-215.14509841,0.00027446,2]
[400331435,1767381042699,-495.20392879,0.00027446,2]
[400331436,1767381042710,-500.0,0.00027446,2]
[400331437,1767381042719,-577.0,0.00027446,2]
[400331438,1767381042728,-209.80705324,0.00027446,2]
[400331439,1767381042737,-500.0,0.00027446,2]
[400331440,1767381042746,-150.0,0.00027446,2]
[400331441,1767381042754,-500.0,0.00027446,2]
[400331442,1767381042764,-500.0,0.00027446,2]
[400331443,1767381042773,-150.0,0.00027446,2]
[400331444,1767381042782,-452.82209839,0.00027446,2]
[400331445,1767381042791,-150.33162922,0.00027446,2]
[400331446,1767381042800,-150.53756938,0.00027446,2]
[400331447,1767381042808,-500.0,0.00027446,2]
[400331448,1767381042818,-233.60762801,0.00027446,2]
[400331449,1767381042827,-500.0,0.00027446,2]
[400331450,1767381042836,-500.0,0.00027446,2]
[400331451,1767381042846,-500.0,0.00027446,2]
[400331452,1767381042855,-453.0,0.00027446,2]
[400331453,1767381042864,-500.0,0.00027446,2]
[400331454,1767381042873,-208.12,0.00027478,2]
[400331455,1767381042883,-1000.0,0.00027513,2]
[400331456,1767381042892,-500.0,0.00027583,2]
[400331457,1767381042901,-500.0,0.00027583,2]
[400331458,1767381042910,-500.0,0.00027583,2]
[400331459,1767381042919,-577.0,0.00027583,2]
[400331460,1767381042929,-500.0,0.00027583,2]
[400331461,1767381042938,-235.01856769,0.00027583,2]
[400331462,1767381042947,-500.0,0.00027583,2]
[400331463,1767381042956,-450.0,0.00027583,2]
[400331464,1767381042965,-151.42325421,0.00027583,2]
[400331465,1767381042975,-500.0,0.00027583,2]
[400331466,1767381042984,-300.0,0.00027583,2]
[400331467,1767381042993,-500.0,0.00027583,2]
[400331468,1767381043004,-500.0,0.00027583,2]
[400331469,1767381043013,-453.0,0.00027583,2]
[400331472,1767381043022,-500.0,0.00027583,2]
[400331474,1767381043031,-2543.69,0.00027587,2]
[400331476,1767381043039,-1531.74,0.00027619,14]
[400331478,1767381043048,-500.0,0.0002772,2]
[400331480,1767381043057,-7.88024255,0.0002772,2]
[400331481,1767381043069,-492.11975745,0.0002772,2]
[400331482,1767381043077,-467.67024255,0.0002772,2]
[400331483,1767381043090,-32.32975745,0.0002772,2]
[400331484,1767381043099,-577.0,0.0002772,2]
[400331485,1767381043109,-500.0,0.0002772,2]
[400331486,1767381043118,-500.0,0.0002772,2]
[400331487,1767381043127,-500.0,0.0002772,2]
[400331488,1767381043136,-500.0,0.0002772,2]
[400331489,1767381043147,-199.32717415,0.0002772,2]
[400331490,1767381043158,-453.0,0.0002772,2]
[400331491,1767381043169,-500.0,0.0002772,2]
[400331492,1767381043179,-474.84232224,0.00027807,2]
[400331493,1767381043188,-311.72,0.00027819,2]
[400331494,1767381043198,-500.0,0.00027857,2]
[400331495,1767381043207,-500.0,0.00027857,2]
[400331496,1767381043216,-500.0,0.00027857,2]
[400331497,1767381043226,-577.0,0.00027857,2]
[400331498,1767381043235,-500.0,0.00027857,2]
[400331499,1767381043244,-428.39452872,0.00027857,2]
[400331500,1767381043253,-500.0,0.00027857,2]
[400331501,1767381043263,-500.0,0.00027857,2]
[400331502,1767381043274,-453.0,0.00027857,2]
[400331503,1767381043284,-500.0,0.00027857,2]
[400331504,1767381043293,-1531.74,0.00027893,14]
[400331505,1767381043303,-1947.3123728,0.00027925,2]
[400331506,1767381043312,-500.0,0.00027994,2]
[400331507,1767381043321,-500.0,0.00027994,2]
[400331508,1767381043330,-500.0,0.00027994,2]
[400331509,1767381043340,-577.0,0.00027994,2]
[400331510,1767381043352,-638.11163793,0.00027994,2]
[400331511,1767381043361,-500.0,0.00027994,2]
[400331512,1767381043370,-500.0,0.00027994,2]
[400331513,1767381043380,-453.0,0.00027994,2]
[400331514,1767381043389,-500.0,0.00027994,2]
[400331515,1767381043399,-166.66,0.00028102,2]
[400331516,1767381043408,-151.0,0.00028128,7]
[400331517,1767381043417,-215.65062607,0.00028131,2]
[400331518,1767381043428,-500.0,0.00028131,2]
[400331519,1767381043438,-500.0,0.00028131,2]
[400331520,1767381043447,-577.0,0.00028131,2]
[400331521,1767381043457,-295.1656086,0.00028131,2]
[400331522,1767381043466,-500.0,0.00028131,2]
[400331523,1767381043476,-453.0,0.00028131,2]
[400331524,1767381043485,-308.3819682,0.00028131,2]
[400331525,1767381043494,-1531.74,0.00028167,14]
[400331526,1767381043504,-500.0,0.00028268,2]
[400331527,1767381043513,-480.0,0.00028268,2]
[400331528,1767381043523,-577.0,0.00028268,2]
[400331529,1767381043532,-500.0,0.00028268,2]
[400331530,1767381043541,-453.0,0.00028268,2]
[400331531,1767381043551,-500.0,0.00028405,2]
[400331532,1767381043560,-577.0,0.00028405,2]
[400331533,1767381043569,-500.0,0.00028405,2]
[400331534,1767381043578,-453.0,0.00028405,2]
[400331535,1767381043587,-1531.74,0.00028441,14]
[400331536,1767381043596,-1000.0,0.00028473,2]
[400331537,1767381043606,-500.0,0.00028542,2]
[400331538,1767381043616,-577.0,0.00028542,2]
[400331539,1767381043625,-500.0,0.00028542,2]
[400331540,1767381043634,-453.0,0.00028542,2]
[400331541,1767381043644,-434.5041216,0.00028627,2]
[400331542,1767381043653,-500.0,0.00028679,2]
[400331543,1767381043663,-577.0,0.00028679,2]
[400331544,1767381043673,-235.10310192,0.00028679,2]
[400331545,1767381043683,-453.0,0.00028679,2]
[400331546,1767381043692,-1531.74,0.00028715,14]
[400331547,1767381043701,-28541.44704938,0.00028796,2]
[400331548,1767381043710,-500.0,0.00028816,2]
[400331549,1767381043722,-577.0,0.00028816,2]
[400331550,1767381043731,-453.0,0.00028816,2]
[400331551,1767381043741,-2543.69,0.00028901,2]
[400331552,1767381043751,-151.8492044,0.00028922,2]
[400331553,1767381043762,-500.0,0.00028953,2]
[400331554,1767381043771,-577.0,0.00028953,2]
[400331555,1767381043781,-453.0,0.00028953,2]
[400331556,1767381043790,-166.66,0.00028972,2]
[400331557,1767381043800,-1531.87,0.00028988,14]
[400331558,1767381043810,-587.0,0.00029083,2]
[400331559,1767381043821,-293.27926274,0.0002909,2]
[400331560,1767381043839,-577.0,0.0002909,2]
[400331561,1767381043850,-453.0,0.0002909,2]
[400331562,1767381043860,-2351.0,0.00029204,2]
[400331563,1767381043870,-2351.0,0.00029208,2]
[400331564,1767381043880,-577.0,0.00029227,2]
[400331565,1767381043889,-453.0,0.00029227,2]
[400331566,1767381043900,-577.0,0.00029364,2]
[400331567,1767381043910,-453.0,0.00029364,2]
[400331568,1767381043920,-1000.0,0.00029433,2]
[400331569,1767381043931,-1000.0,0.00029451,2]
[400331570,1767381043940,-577.0,0.00029501,2]
[400331571,1767381043950,-453.0,0.00029501,2]
[400331572,1767381043959,-577.0,0.00029638,2]
[400331573,1767381043968,-453.0,0.00029638,2]
[400331574,1767381043977,-577.0,0.00029775,2]
[400331575,1767381043986,-166.66,0.00029842,2]
[400331576,1767381043995,-577.0,0.00029912,2]
[400331577,1767381044004,-577.0,0.00030049,2]
[400331578,1767381044014,-577.0,0.00030186,2]
[400331579,1767381044024,-2543.69,0.00030214,2]
[400331580,1767381044033,-594.15585513,0.00030323,2]
[400331581,1767381044043,-166.66,0.00030713,2]
[400331582,1767381044054,-28541.44704938,0.00030804,2]
[400331583,1767381044062,-474.84232224,0.00030814,2]
[400331584,1767381044073,-311.72,0.00030981,2]
[400331585,1767381044082,-500.0,0.00031447,2]
[400331586,1767381044093,-500.0,0.00031447,30]
[400331587,1767381044102,-823.0,0.00031514,3]
[400331588,1767381044112,-2543.69,0.00031528,2]
[400331589,1767381044121,-3292.0,0.00031642,3]
[400331590,1767381044130,-3292.0,0.00031798,3]
[400331591,1767381044140,-150.0,0.00032482,2]
[400331592,1767381044150,-150.0,0.00032482,2]
[400331593,1767381044159,-161.399,0.00032483,2]
[400331594,1767381044170,-250.0,0.00032565,2]
[400331595,1767381044178,-1000.0,0.00032723,2]
[400331596,1767381044191,-18563.12622953,0.00032812,2]
[400331597,1767381044201,-28541.44704938,0.00032812,2]
[400331598,1767381044211,-152.26,0.00033,14]
[400331599,1767381044222,-280.36,0.00033,14]
[400331600,1767381044232,-554.105794,0.00033,14]
[400331601,1767381044241,-1328.0,0.0003327,2]
[400331602,1767381044251,-1403.0,0.0003327,2]
[400331603,1767381044260,-613.0,0.00033277,2]
[400331604,1767381044269,-3463.0,0.00033277,2]
[400331605,1767381044279,-1265.0,0.00033418,2]
[400331606,1767381044288,-432.0,0.00033418,2]
[400331607,1767381044298,-1199.0,0.00033418,2]
[400331608,1767381044308,-913.0,0.00033418,2]
[400331609,1767381044318,-2433.0,0.00033418,2]
[400331610,1767381044327,-4812.0,0.00033418,2]
[400331611,1767381044338,-6544.0,0.00033418,2]
[400331612,1767381044350,-3575.0,0.00033418,2]
[400331613,1767381044360,-200.0,0.00033679,2]
[400331614,1767381044370,-207.4,0.00033679,2]
[400331615,1767381044379,-215.0738,0.00033679,2]
[400331616,1767381044389,-223.0315306,0.00033679,2]
[400331617,1767381044402,-231.28369723,0.00033679,2]
[400331618,1767381044412,-239.84119403,0.00033679,2]
[400331619,1767381044423,-248.71531821,0.00033679,2]
[400331620,1767381044433,-257.91778498,0.00033679,2]
[400331621,1767381044443,-267.46074303,0.00033679,2]
[400331622,1767381044452,-474.84232224,0.00033822,2]
[400331623,1767381044462,-319.0,0.00033844,11]
[400331624,1767381044471,-311.72,0.00034143,2]
[400331625,1767381044481,-1152.0,0.00034148,3]
[400331626,1767381044491,-1200.0,0.00034283,3]
[400331627,1767381044500,-1600.0,0.00034293,120]
[400331628,1767381044510,-208.12,0.00034349,2]
[400331629,1767381044519,-150.0,0.000344,7]
[400331630,1767381044529,-150.0,0.000344,7]
[400331631,1767381044539,-150.0,0.000344,7]
[400331632,1767381044549,-150.0,0.000344,7]
[400331633,1767381044558,-150.0,0.000344,7]
[400331634,1767381044567,-150.0,0.000344,7]
[400331635,1767381044578,-2000.0,0.000345,2]
[400331636,1767381044588,-4609.0,0.00034616,3]
[400331637,1767381044601,-18563.12622953,0.00034821,2]
[400331638,1767381044613,-28541.44704938,0.00034821,2]
[400331639,1767381044623,-277.35679052,0.00035048,2]
[400331640,1767381044633,-2000.0,0.000351,2]
[400331641,1767381044643,-159.237,0.00035221,41]
[400331642,1767381044652,-1808.39,0.00035221,41]
[400331643,1767381044661,-150.0,0.00035482,2]
[400331644,1767381044673,-384.39329741,0.00035616,29]
[400331645,1767381044682,-2626.0,0.00035981,5]
[400331646,1767381044692,-1000.0,0.00035995,2]
[400331647,1767381044701,-465.163,0.0003627,2]
[400331648,1767381044710,-1403.0,0.0003627,2]
[400331649,1767381044720,-613.0,0.00036277,2]
[400331650,1767381044729,-238.42,0.00036401,14]
[400331651,1767381044738,-287.61899177,0.00036417,2]
[400331652,1767381044748,-1263.0,0.00036418,2]
[400331653,1767381044758,-1199.0,0.00036418,2]
[400331654,1767381044768,-913.0,0.00036418,2]
[400331655,1767381044778,-2433.0,0.00036418,2]
[400331656,1767381044789,-6540.0,0.00036418,2]
[400331657,1767381044802,-205.94,0.0003667,5]
[400331658,1767381044812,-151.0,0.00036826,14]
[400331659,1767381044822,-151.0,0.00036826,14]
[400331660,1767381044832,-474.84232224,0.00036829,2]
[400331661,1767381044841,-18563.12622953,0.00036829,2]
[400331662,1767381044851,-28541.44704938,0.00036829,2]
[400331663,1767381044861,-151.0,0.00036829,31]
[400331664,1767381044871,-151.0,0.00036829,31]
[400331665,1767381044881,-280.36,0.00037,14]
[400331666,1767381044891,-1435.0,0.00037003,3]
[400331667,1767381044901,-238.42,0.00037189,14]
[400331668,1767381044910,-311.72,0.00037304,2]
[400331669,1767381044920,-1600.0,0.00037411,120]
[400331670,1767381044930,-6453.0,0.00037685,3]
[400331671,1767381044940,-298.26089446,0.00037786,2]
[400331672,1767381044949,-500.0,0.00038082,2]
[400331673,1767381044960,-2000.0,0.000382,2]
[400331675,1767381044969,-185.046945,0.00038356,120]
[400331677,1767381044978,-151.0,0.00038356,120]
[400331678,1767381044988,-235.84568341,0.0003843,2]
[400331679,1767381045001,-3277.86,0.0003844,2]
[400331680,1767381045011,-151.0,0.0003844,120]
[400331681,1767381045020,-151.0,0.0003844,120]
[400331682,1767381045030,-151.0,0.0003844,120]
[400331683,1767381045040,-151.0,0.0003844,120]
[400331684,1767381045050,-481.729128,0.0003844,2]
[400331685,1767381045059,-481.729128,0.0003844,2]
[400331686,1767381045068,-304.479892,0.0003844,7]